[Event "Late-Titled-Tuesday-Blitz-February-13-2024"]
[Site "Chess.com"]
[Date "2024.02.13"]
[Round "9"]
[White "Sokoloco"]
[Black "Sl4werThanYou"]
[Result "0-1"]
[WhiteElo "2797"]
[BlackElo "2690"]
[TimeControl "180+1"]
[EndTime "15:45:03 PST"]
[Termination "Sl4werThanYou won on time"]

1. b3 {[%clk 0:03:00.9]} 1... b6 {[%clk 0:02:55]} 2. Bb2 {[%clk 0:02:59.7]} 2...
Bb7 {[%clk 0:02:55.9]} 3. e3 {[%clk 0:03:00.3]} 3... e6 {[%clk 0:02:55.8]} 4.
Nf3 {[%clk 0:03:01]} 4... f5 {[%clk 0:02:55.1]} 5. d4 {[%clk 0:03:01.7]} 5...
Nf6 {[%clk 0:02:55.3]} 6. c4 {[%clk 0:03:02]} 6... Bb4+ {[%clk 0:02:55]} 7. Nc3
{[%clk 0:03:02.3]} 7... Ne4 {[%clk 0:02:54.4]} 8. Qc2 {[%clk 0:03:01.4]} 8...
O-O {[%clk 0:02:54.5]} 9. Be2 {[%clk 0:02:55.4]} 9... Nc6 {[%clk 0:02:50.1]} 10.
O-O {[%clk 0:02:49.1]} 10... Bxc3 {[%clk 0:02:50.3]} 11. Bxc3 {[%clk 0:02:50]}
11... Ne7 {[%clk 0:02:50.5]} 12. Bb2 {[%clk 0:02:44.4]} 12... Ng6 {[%clk
0:02:50.2]} 13. Ne1 {[%clk 0:02:17.7]} 13... Qg5 {[%clk 0:02:42.3]} 14. Bc1
{[%clk 0:01:43.6]} 14... Nh4 {[%clk 0:02:30.4]} 15. f3 {[%clk 0:01:42.7]} 15...
Nf6 {[%clk 0:02:27.9]} 16. e4 {[%clk 0:01:40.7]} 16... Qg6 {[%clk 0:02:23.1]}
17. e5 {[%clk 0:01:38.3]} 17... Nh5 {[%clk 0:02:11.7]} 18. Kf2 {[%clk 0:01:28]}
18... f4 {[%clk 0:02:06]} 19. Qxg6 {[%clk 0:00:54.9]} 19... hxg6 {[%clk
0:02:06.9]} 20. Bd3 {[%clk 0:00:49]} 20... Nf5 {[%clk 0:02:06.7]} 21. Nc2 {[%clk
0:00:48.5]} 21... a5 {[%clk 0:02:03.3]} 22. Be4 {[%clk 0:00:45.7]} 22... Bc6
{[%clk 0:01:44.3]} 23. Rg1 {[%clk 0:00:38.2]} 23... g5 {[%clk 0:01:28.5]} 24. d5
{[%clk 0:00:38.1]} 24... Bb7 {[%clk 0:01:24.6]} 25. dxe6 {[%clk 0:00:29.4]}
25... Bxe4 {[%clk 0:01:24.9]} 26. fxe4 {[%clk 0:00:30.3]} 26... Ne3 {[%clk
0:01:25.7]} 27. Nxe3 {[%clk 0:00:16.9]} 27... fxe3+ {[%clk 0:01:26.6]} 28. Kxe3
{[%clk 0:00:17.8]} 28... dxe6 {[%clk 0:01:27.5]} 29. g3 {[%clk 0:00:18.4]} 29...
a4 {[%clk 0:01:26.4]} 30. b4 {[%clk 0:00:17.9]} 30... a3 {[%clk 0:01:25.6]} 31.
Ke2 {[%clk 0:00:18.1]} 31... Ra4 {[%clk 0:01:22.9]} 32. Rb1 {[%clk 0:00:18.2]}
32... g4 {[%clk 0:01:22.4]} 33. Be3 {[%clk 0:00:13.8]} 33... g6 {[%clk
0:01:21.3]} 34. Rgd1 {[%clk 0:00:13.6]} 34... Ng7 {[%clk 0:01:19.4]} 35. Rd7
{[%clk 0:00:13.2]} 35... Rf7 {[%clk 0:01:19.9]} 36. Rxf7 {[%clk 0:00:13.2]}
36... Kxf7 {[%clk 0:01:20.8]} 37. Bd2 {[%clk 0:00:13.4]} 37... Ne8 {[%clk
0:01:12.7]} 38. Kd3 {[%clk 0:00:13.4]} 38... c6 {[%clk 0:01:11.8]} 39. Kc3
{[%clk 0:00:13.4]} 39... Nc7 {[%clk 0:01:11.1]} 40. Kb3 {[%clk 0:00:08.7]} 40...
Ra8 {[%clk 0:01:10]} 41. Bg5 {[%clk 0:00:09.4]} 41... Ke8 {[%clk 0:01:09.1]} 42.
Rd1 {[%clk 0:00:09.3]} 42... Na6 {[%clk 0:00:56.5]} 43. Rd6 {[%clk 0:00:09.5]}
43... c5 {[%clk 0:00:57.1]} 44. b5 {[%clk 0:00:06.9]} 44... Nb4 {[%clk
0:00:56.8]} 45. Rxe6+ {[%clk 0:00:07.4]} 45... Kd7 {[%clk 0:00:56.9]} 46. Rxb6
{[%clk 0:00:05.3]} 46... Re8 {[%clk 0:00:55.7]} 47. e6+ {[%clk 0:00:05]} 47...
Kc7 {[%clk 0:00:55.6]} 48. Ra6 {[%clk 0:00:01.7]} 48... Nxa6 {[%clk 0:00:55.3]}
49. bxa6 {[%clk 0:00:02.6]} 49... Rxe6 {[%clk 0:00:56]} 50. a7 {[%clk 0:00:02]}
50... Kb7 {[%clk 0:00:56.2]} 51. Kxa3 {[%clk 0:00:01.6]} 51... Rxe4 {[%clk
0:00:56.4]} 52. Kb3 {[%clk 0:00:02.1]} 52... Re2 {[%clk 0:00:56.7]} 53. a4
{[%clk 0:00:02.2]} 53... Rxh2 {[%clk 0:00:56.9]} 54. a5 {[%clk 0:00:02.6]} 54...
Kxa7 {[%clk 0:00:56.7]} 55. Ka4 {[%clk 0:00:03.3]} 55... Ka6 {[%clk 0:00:56.9]}
56. Bf4 {[%clk 0:00:03.8]} 56... Ra2+ {[%clk 0:00:57.2]} 57. Kb3 {[%clk
0:00:04.2]} 57... Rxa5 {[%clk 0:00:57.8]} 58. Bd6 {[%clk 0:00:04.2]} 58... Kb6
{[%clk 0:00:57.6]} 59. Bf4 {[%clk 0:00:04.1]} 59... Ra8 {[%clk 0:00:58.1]} 60.
Be5 {[%clk 0:00:02.7]} 60... Kc6 {[%clk 0:00:58.7]} 61. Bf4 {[%clk 0:00:03]}
61... Rf8 {[%clk 0:00:59]} 62. Be5 {[%clk 0:00:03.2]} 62... Rf5 {[%clk
0:00:59.4]} 63. Bb8 {[%clk 0:00:03.2]} 63... Rf3+ {[%clk 0:00:58.6]} 64. Kc2
{[%clk 0:00:03.3]} 64... Rf8 {[%clk 0:00:56]} 65. Be5 {[%clk 0:00:02.8]} 65...
Kd7 {[%clk 0:00:56.6]} 66. Kb3 {[%clk 0:00:02.5]} 66... Ke6 {[%clk 0:00:57.1]}
67. Bc7 {[%clk 0:00:03]} 67... Rf7 {[%clk 0:00:57.4]} 0-1

[Event "Late-Titled-Tuesday-Blitz-February-13-2024"]
[Site "Chess.com"]
[Date "2024.02.13"]
[Round "9"]
[White "Payyappat"]
[Black "Rodalquilar"]
[Result "1/2-1/2"]
[WhiteElo "2577"]
[BlackElo "2763"]
[TimeControl "180+1"]
[EndTime "15:45:03 PST"]
[Termination "Game drawn by repetition"]

1. e4 {[%clk 0:03:00.9]} 1... d5 {[%clk 0:03:00.3]} 2. exd5 {[%clk 0:03:01.8]}
2... Qxd5 {[%clk 0:03:00.9]} 3. d4 {[%clk 0:03:01.5]} 3... Nc6 {[%clk
0:03:00.6]} 4. Nf3 {[%clk 0:03:01.6]} 4... Bg4 {[%clk 0:03:00.5]} 5. Be2 {[%clk
0:03:01.8]} 5... O-O-O {[%clk 0:02:55.5]} 6. c4 {[%clk 0:03:01.3]} 6... Qf5
{[%clk 0:02:51.7]} 7. Be3 {[%clk 0:03:00.5]} 7... Bxf3 {[%clk 0:02:49.3]} 8.
Bxf3 {[%clk 0:03:01.4]} 8... Nxd4 {[%clk 0:02:49.8]} 9. Bxd4 {[%clk 0:03:02.3]}
9... Qe6+ {[%clk 0:02:49.7]} 10. Be2 {[%clk 0:03:02.5]} 10... Qe4 {[%clk
0:02:47.1]} 11. O-O {[%clk 0:02:32.8]} 11... Qxd4 {[%clk 0:02:47.1]} 12. Qa4
{[%clk 0:02:28.5]} 12... e6 {[%clk 0:02:47.4]} 13. Nc3 {[%clk 0:02:27.9]} 13...
c6 {[%clk 0:02:08.2]} 14. Rad1 {[%clk 0:02:05]} 14... Qe5 {[%clk 0:02:08.5]} 15.
Qxa7 {[%clk 0:01:52]} 15... Bd6 {[%clk 0:02:01.9]} 16. g3 {[%clk 0:01:47.6]}
16... Nf6 {[%clk 0:02:01.9]} 17. Bf3 {[%clk 0:01:41.7]} 17... Qc5 {[%clk
0:01:46.4]} 18. Qa4 {[%clk 0:01:20.7]} 18... Qb4 {[%clk 0:01:46.3]} 19. Bxc6
{[%clk 0:00:57.8]} 19... bxc6 {[%clk 0:01:26.1]} 20. Qxc6+ {[%clk 0:00:58.7]}
20... Bc7 {[%clk 0:01:26.5]} 21. Nb5 {[%clk 0:00:48.7]} 21... Qa5 {[%clk
0:01:26.7]} 22. c5 {[%clk 0:00:33.9]} 22... Nd5 {[%clk 0:00:31.1]} 23. Rxd5
{[%clk 0:00:07.7]} 23... Rxd5 {[%clk 0:00:32]} 24. b4 {[%clk 0:00:07.5]} 24...
Rxc5 {[%clk 0:00:32.6]} 25. Qxc5 {[%clk 0:00:05]} 25... Qb6 {[%clk 0:00:32.9]}
26. Rc1 {[%clk 0:00:05.4]} 26... Kb7 {[%clk 0:00:29.8]} 27. Qxc7+ {[%clk
0:00:05.3]} 27... Qxc7 {[%clk 0:00:30.4]} 28. Rxc7+ {[%clk 0:00:05.5]} 28... Kb6
{[%clk 0:00:30.9]} 29. a4 {[%clk 0:00:05.7]} 29... Ra8 {[%clk 0:00:30.9]} 30.
Rxf7 {[%clk 0:00:05.8]} 30... Rxa4 {[%clk 0:00:31.3]} 31. Nd4 {[%clk 0:00:06.2]}
31... e5 {[%clk 0:00:31.6]} 32. Nf3 {[%clk 0:00:06.3]} 32... e4 {[%clk
0:00:31.7]} 33. Ng5 {[%clk 0:00:06.7]} 33... Rxb4 {[%clk 0:00:31.2]} 34. Rxg7
{[%clk 0:00:06.7]} 34... h6 {[%clk 0:00:31.8]} 35. Ne6 {[%clk 0:00:06.8]} 35...
Kc6 {[%clk 0:00:32.4]} 36. Nf4 {[%clk 0:00:07]} 36... Kd6 {[%clk 0:00:31.6]} 37.
Rg6+ {[%clk 0:00:07.3]} 37... Ke5 {[%clk 0:00:32.3]} 38. Rxh6 {[%clk 0:00:07.7]}
38... Kf5 {[%clk 0:00:33.1]} 39. Kg2 {[%clk 0:00:08]} 39... Rb2 {[%clk 0:00:32]}
40. Rh5+ {[%clk 0:00:08.4]} 40... Kf6 {[%clk 0:00:31.2]} 41. h4 {[%clk
0:00:08.4]} 41... e3 {[%clk 0:00:31.6]} 42. Nd5+ {[%clk 0:00:08.7]} 42... Kg6
{[%clk 0:00:31.1]} 43. Rg5+ {[%clk 0:00:09.1]} 43... Kh6 {[%clk 0:00:31.8]} 44.
Nxe3 {[%clk 0:00:09.6]} 44... Rb6 {[%clk 0:00:32.3]} 45. Ng4+ {[%clk 0:00:09.7]}
45... Kh7 {[%clk 0:00:32.5]} 46. h5 {[%clk 0:00:10.1]} 46... Kh8 {[%clk
0:00:33.1]} 47. Rg6 {[%clk 0:00:10.2]} 47... Rb2 {[%clk 0:00:31.7]} 48. Kh3
{[%clk 0:00:10.3]} 48... Rb1 {[%clk 0:00:31.6]} 49. Ne5 {[%clk 0:00:08.5]} 49...
Rb5 {[%clk 0:00:30.2]} 50. f4 {[%clk 0:00:08.6]} 50... Kh7 {[%clk 0:00:29.5]}
51. Nd7 {[%clk 0:00:08.4]} 51... Rxh5+ {[%clk 0:00:29.5]} 52. Kg4 {[%clk
0:00:08.9]} 52... Kxg6 {[%clk 0:00:30.2]} 53. Ne5+ {[%clk 0:00:09.1]} 53... Kh6
{[%clk 0:00:30.6]} 54. Nf7+ {[%clk 0:00:09.5]} 54... Kg6 {[%clk 0:00:31.2]} 55.
Ne5+ {[%clk 0:00:10.2]} 55... Kh6 {[%clk 0:00:31.8]} 56. Nf7+ {[%clk 0:00:10.8]}
56... Kg6 {[%clk 0:00:32.4]} 57. Ne5+ {[%clk 0:00:11.2]} 1/2-1/2

[Event "Late-Titled-Tuesday-Blitz-February-13-2024"]
[Site "Chess.com"]
[Date "2024.02.13"]
[Round "9"]
[White "Hikaru"]
[Black "LiemLe"]
[Result "1-0"]
[WhiteElo "3318"]
[BlackElo "3022"]
[TimeControl "180+1"]
[EndTime "15:45:06 PST"]
[Termination "Hikaru won by resignation"]

1. e4 {[%clk 0:03:00.7]} 1... e5 {[%clk 0:02:59.8]} 2. Bc4 {[%clk 0:03:00.8]}
2... Nf6 {[%clk 0:02:58.8]} 3. d3 {[%clk 0:03:01.4]} 3... Nc6 {[%clk 0:02:58.8]}
4. Ne2 {[%clk 0:02:56.9]} 4... d5 {[%clk 0:02:53.2]} 5. exd5 {[%clk 0:02:57.2]}
5... Nxd5 {[%clk 0:02:54.1]} 6. Nbc3 {[%clk 0:02:57.7]} 6... Be6 {[%clk
0:02:48.1]} 7. Bb3 {[%clk 0:02:58.1]} 7... Qd7 {[%clk 0:02:45.3]} 8. O-O {[%clk
0:02:56.3]} 8... O-O-O {[%clk 0:02:45]} 9. Be3 {[%clk 0:02:55]} 9... f5 {[%clk
0:02:38.4]} 10. Nxd5 {[%clk 0:02:48.5]} 10... Bxd5 {[%clk 0:02:39.3]} 11. f4
{[%clk 0:02:48.9]} 11... g6 {[%clk 0:02:24.1]} 12. Ba4 {[%clk 0:02:30.8]} 12...
Bg7 {[%clk 0:02:13.3]} 13. fxe5 {[%clk 0:02:30.2]} 13... Bxe5 {[%clk 0:02:09.2]}
14. Bg5 {[%clk 0:01:29.6]} 14... Rde8 {[%clk 0:02:08.5]} 15. c4 {[%clk
0:01:29.5]} 15... Bf7 {[%clk 0:01:17.6]} 16. d4 {[%clk 0:01:29.3]} 16... Bxd4+
{[%clk 0:00:36.2]} 17. Nxd4 {[%clk 0:01:28.5]} 17... Qxd4+ {[%clk 0:00:37.1]}
18. Qxd4 {[%clk 0:01:24.9]} 18... Nxd4 {[%clk 0:00:38]} 19. Bxe8 {[%clk
0:00:53.6]} 19... Rxe8 {[%clk 0:00:38.9]} 20. b3 {[%clk 0:00:54]} 20... Re2
{[%clk 0:00:33.9]} 21. Rf2 {[%clk 0:00:51.1]} 21... Re4 {[%clk 0:00:33.8]} 22.
Rd2 {[%clk 0:00:48.8]} 22... b6 {[%clk 0:00:28.2]} 23. Bf6 {[%clk 0:00:46.3]}
23... Ne6 {[%clk 0:00:25.4]} 24. Rad1 {[%clk 0:00:43.1]} 24... Be8 {[%clk
0:00:25.1]} 25. Kf1 {[%clk 0:00:41.6]} 25... Bc6 {[%clk 0:00:19.5]} 26. Re1
{[%clk 0:00:38.1]} 26... a5 {[%clk 0:00:18.9]} 27. Rxe4 {[%clk 0:00:36.9]} 27...
Bxe4 {[%clk 0:00:19.8]} 28. Kf2 {[%clk 0:00:37]} 28... g5 {[%clk 0:00:15.8]} 29.
h4 {[%clk 0:00:30.4]} 29... h6 {[%clk 0:00:15]} 30. g3 {[%clk 0:00:30.3]} 30...
f4 {[%clk 0:00:10.9]} 31. gxf4 {[%clk 0:00:24.3]} 31... Nxf4 {[%clk 0:00:07.3]}
32. hxg5 {[%clk 0:00:24.2]} 32... hxg5 {[%clk 0:00:08.2]} 33. Ke3 {[%clk
0:00:24.6]} 33... Bc6 {[%clk 0:00:04.8]} 34. Bxg5 {[%clk 0:00:25.2]} 34... Ne6
{[%clk 0:00:05.6]} 35. Bf6 {[%clk 0:00:25.8]} 35... a4 {[%clk 0:00:05.9]} 36. b4
{[%clk 0:00:25.6]} 36... b5 {[%clk 0:00:05.5]} 37. Kd3 {[%clk 0:00:22.8]} 37...
Kb7 {[%clk 0:00:04.7]} 38. Rf2 {[%clk 0:00:21.4]} 38... bxc4+ {[%clk 0:00:03.9]}
39. Kxc4 {[%clk 0:00:21.8]} 39... Kb6 {[%clk 0:00:04.5]} 40. Rf5 {[%clk
0:00:21.7]} 40... Kb7 {[%clk 0:00:03.9]} 41. Be5 {[%clk 0:00:13.3]} 41... Be4
{[%clk 0:00:03.5]} 42. Rf6 {[%clk 0:00:13.6]} 42... Nd8 {[%clk 0:00:02.1]} 43.
b5 {[%clk 0:00:13]} 43... Bb1 {[%clk 0:00:01.3]} 44. a3 {[%clk 0:00:13.6]} 44...
Ba2+ {[%clk 0:00:01.9]} 45. Kb4 {[%clk 0:00:14.3]} 45... Bb3 {[%clk 0:00:02.4]}
46. Rg6 {[%clk 0:00:14.7]} 46... Nf7 {[%clk 0:00:02.8]} 47. Bf4 {[%clk
0:00:15.2]} 47... Bc2 {[%clk 0:00:02.8]} 48. Rg7 {[%clk 0:00:15.3]} 48... Bb3
{[%clk 0:00:03.3]} 49. Bg3 {[%clk 0:00:15.9]} 49... Kc8 {[%clk 0:00:03.8]} 50.
Rg6 {[%clk 0:00:15.2]} 50... Kd7 {[%clk 0:00:03.8]} 51. Rc6 {[%clk 0:00:14.8]}
51... Nd6 {[%clk 0:00:03.1]} 52. Bxd6 {[%clk 0:00:15.1]} 52... cxd6 {[%clk
0:00:04]} 53. Ra6 {[%clk 0:00:15.5]} 53... Kc7 {[%clk 0:00:03.8]} 54. Rxa4
{[%clk 0:00:16.1]} 54... Bxa4 {[%clk 0:00:03.7]} 55. Kxa4 {[%clk 0:00:17]} 55...
Kb6 {[%clk 0:00:04.2]} 56. Kb4 {[%clk 0:00:17.7]} 56... d5 {[%clk 0:00:05.1]}
57. a4 {[%clk 0:00:18.5]} 57... d4 {[%clk 0:00:06]} 58. a5+ {[%clk 0:00:19.4]}
58... Kb7 {[%clk 0:00:06.5]} 59. Kc4 {[%clk 0:00:20.3]} 1-0

[Event "Late-Titled-Tuesday-Blitz-February-13-2024"]
[Site "Chess.com"]
[Date "2024.02.13"]
[Round "9"]
[White "ajeale2"]
[Black "trriinu"]
[Result "1-0"]
[WhiteElo "2505"]
[BlackElo "2253"]
[TimeControl "180+1"]
[EndTime "15:45:14 PST"]
[Termination "ajeale2 won by checkmate"]

1. c4 {[%clk 0:03:00.9]} 1... g6 {[%clk 0:02:52.6]} 2. Nc3 {[%clk 0:02:59.8]}
2... Bg7 {[%clk 0:02:53.2]} 3. Nf3 {[%clk 0:02:59.6]} 3... d6 {[%clk 0:02:53.6]}
4. g3 {[%clk 0:03:00]} 4... Nf6 {[%clk 0:02:54.3]} 5. Bg2 {[%clk 0:03:00.6]}
5... O-O {[%clk 0:02:55.2]} 6. O-O {[%clk 0:03:01.3]} 6... c5 {[%clk 0:02:55.6]}
7. d4 {[%clk 0:03:00.8]} 7... Nbd7 {[%clk 0:02:48.2]} 8. e4 {[%clk 0:02:55.8]}
8... cxd4 {[%clk 0:02:47.1]} 9. Nxd4 {[%clk 0:02:55.8]} 9... Nc5 {[%clk
0:02:45.5]} 10. f3 {[%clk 0:02:55.1]} 10... Be6 {[%clk 0:02:42.4]} 11. b3 {[%clk
0:02:53]} 11... Qd7 {[%clk 0:02:27.1]} 12. Re1 {[%clk 0:02:47.1]} 12... Rac8
{[%clk 0:02:13]} 13. Be3 {[%clk 0:02:46.3]} 13... Bh3 {[%clk 0:02:05.8]} 14. Bh1
{[%clk 0:02:45]} 14... Ne8 {[%clk 0:01:54.1]} 15. Qd2 {[%clk 0:02:42.8]} 15...
Ne6 {[%clk 0:01:37.2]} 16. Rad1 {[%clk 0:02:15.9]} 16... N8c7 {[%clk 0:01:30.4]}
17. Nde2 {[%clk 0:01:52]} 17... Na6 {[%clk 0:00:29.7]} 18. Bxa7 {[%clk 0:01:36]}
18... Nac5 {[%clk 0:00:20.6]} 19. Nd5 {[%clk 0:01:32.9]} 19... b5 {[%clk
0:00:09.6]} 20. Bxc5 {[%clk 0:01:14.6]} 20... Rxc5 {[%clk 0:00:10.5]} 21. cxb5
{[%clk 0:00:59.4]} 21... Rxb5 {[%clk 0:00:11.4]} 22. Bg2 {[%clk 0:00:50.5]}
22... Qa7+ {[%clk 0:00:09.8]} 23. Qe3 {[%clk 0:00:40.1]} 23... Qxe3+ {[%clk
0:00:06.4]} 24. Nxe3 {[%clk 0:00:40.2]} 24... Bxg2 {[%clk 0:00:06.5]} 25. Kxg2
{[%clk 0:00:39.9]} 25... Ra8 {[%clk 0:00:07.2]} 26. Rd2 {[%clk 0:00:33.4]} 26...
Rba5 {[%clk 0:00:07.1]} 27. a4 {[%clk 0:00:22.6]} 27... Rb8 {[%clk 0:00:07]} 28.
Nd5 {[%clk 0:00:12.1]} 28... Raa8 {[%clk 0:00:06.5]} 29. Nxe7+ {[%clk
0:00:12.3]} 29... Kf8 {[%clk 0:00:07]} 30. Nc6 {[%clk 0:00:11.9]} 30... Rxb3
{[%clk 0:00:07.1]} 31. a5 {[%clk 0:00:12.3]} 31... Ra6 {[%clk 0:00:03.5]} 32.
Rxd6 {[%clk 0:00:11.7]} 32... Be5 {[%clk 0:00:01.9]} 33. Rxe6 {[%clk 0:00:08.6]}
33... Rxc6 {[%clk 0:00:02.3]} 34. Rxc6 {[%clk 0:00:07]} 34... Ra3 {[%clk
0:00:02.8]} 35. a6 {[%clk 0:00:06.9]} 35... Kg7 {[%clk 0:00:02.4]} 36. f4 {[%clk
0:00:07.3]} 36... Bf6 {[%clk 0:00:02.8]} 37. e5 {[%clk 0:00:06.9]} 37... Bd8
{[%clk 0:00:03.5]} 38. Rd1 {[%clk 0:00:05.2]} 38... Ba5 {[%clk 0:00:03.7]} 39.
Rb1 {[%clk 0:00:04.2]} 39... Ra2 {[%clk 0:00:03.9]} 40. Kf3 {[%clk 0:00:04.7]}
40... Bd2 {[%clk 0:00:03.9]} 41. Rb3 {[%clk 0:00:04.5]} 41... Ra5 {[%clk
0:00:04]} 42. h4 {[%clk 0:00:04.9]} 42... Be1 {[%clk 0:00:04.3]} 43. Rd3 {[%clk
0:00:05.5]} 43... h5 {[%clk 0:00:04.7]} 44. Nd4 {[%clk 0:00:05.9]} 44... Ra4
{[%clk 0:00:04.1]} 45. e6 {[%clk 0:00:05.2]} 45... fxe6 {[%clk 0:00:03.6]} 46.
Nxe6+ {[%clk 0:00:05.5]} 46... Kf7 {[%clk 0:00:04.2]} 47. Ng5+ {[%clk
0:00:06.2]} 47... Kg7 {[%clk 0:00:04.2]} 48. Rd7+ {[%clk 0:00:06.1]} 48... Kf8
{[%clk 0:00:04.5]} 49. Rc8# {[%clk 0:00:06.4]} 1-0

[Event "Late-Titled-Tuesday-Blitz-February-13-2024"]
[Site "Chess.com"]
[Date "2024.02.13"]
[Round "9"]
[White "Dewarfd"]
[Black "Vamostodorecto"]
[Result "0-1"]
[WhiteElo "2163"]
[BlackElo "2382"]
[TimeControl "180+1"]
[EndTime "15:45:18 PST"]
[Termination "Vamostodorecto won on time"]

1. d4 {[%clk 0:02:59.2]} 1... g6 {[%clk 0:02:45.1]} 2. e3 {[%clk 0:02:58.4]}
2... Bg7 {[%clk 0:02:45.7]} 3. Nf3 {[%clk 0:02:58.6]} 3... b6 {[%clk 0:02:41.2]}
4. Be2 {[%clk 0:02:58.7]} 4... Bb7 {[%clk 0:02:41.9]} 5. O-O {[%clk 0:02:58.9]}
5... d6 {[%clk 0:02:40.5]} 6. c4 {[%clk 0:02:58.8]} 6... Nd7 {[%clk 0:02:41.2]}
7. Nc3 {[%clk 0:02:57.6]} 7... e5 {[%clk 0:02:41.8]} 8. dxe5 {[%clk 0:02:57.9]}
8... Nxe5 {[%clk 0:02:40.1]} 9. Nxe5 {[%clk 0:02:58]} 9... Bxe5 {[%clk
0:02:40.9]} 10. Bf3 {[%clk 0:02:50]} 10... Bxf3 {[%clk 0:02:33.5]} 11. Qxf3
{[%clk 0:02:50.9]} 11... Ne7 {[%clk 0:02:29.8]} 12. Nd5 {[%clk 0:02:37.4]} 12...
O-O {[%clk 0:02:27.7]} 13. Rb1 {[%clk 0:01:53.8]} 13... Nf5 {[%clk 0:02:21.5]}
14. b3 {[%clk 0:01:48.7]} 14... c6 {[%clk 0:01:52.7]} 15. Nf4 {[%clk 0:01:47.7]}
15... Rc8 {[%clk 0:01:53]} 16. Bb2 {[%clk 0:01:35]} 16... Qf6 {[%clk 0:01:53.4]}
17. Bxe5 {[%clk 0:01:26]} 17... dxe5 {[%clk 0:01:54.3]} 18. Ne2 {[%clk
0:01:21.1]} 18... Kg7 {[%clk 0:01:52.1]} 19. Rbd1 {[%clk 0:01:19.9]} 19... Rfd8
{[%clk 0:01:50.5]} 20. Nc3 {[%clk 0:01:17.4]} 20... Nd6 {[%clk 0:01:38.9]} 21.
Qxf6+ {[%clk 0:00:54.4]} 21... Kxf6 {[%clk 0:01:39.8]} 22. Rd2 {[%clk
0:00:47.3]} 22... Ke7 {[%clk 0:01:36.6]} 23. Rfd1 {[%clk 0:00:45.6]} 23... f5
{[%clk 0:01:37.2]} 24. Kf1 {[%clk 0:00:45]} 24... Nb7 {[%clk 0:01:36.4]} 25. Ke2
{[%clk 0:00:44.5]} 25... Rxd2+ {[%clk 0:01:33]} 26. Rxd2 {[%clk 0:00:45.4]}
26... Rd8 {[%clk 0:01:32.1]} 27. Rxd8 {[%clk 0:00:45]} 27... Nxd8 {[%clk
0:01:32.7]} 28. Kd3 {[%clk 0:00:43.9]} 28... Kd6 {[%clk 0:01:29.9]} 29. e4
{[%clk 0:00:43.1]} 29... Ne6 {[%clk 0:01:30]} 30. g3 {[%clk 0:00:29.5]} 30... a5
{[%clk 0:01:24]} 31. Ke3 {[%clk 0:00:22.9]} 31... Nd4 {[%clk 0:01:21.2]} 32. f4
{[%clk 0:00:09.7]} 32... Nc2+ {[%clk 0:01:18.1]} 33. Kd2 {[%clk 0:00:09.8]}
33... Nb4 {[%clk 0:01:18.5]} 34. fxe5+ {[%clk 0:00:06.8]} 34... Kxe5 {[%clk
0:01:19.4]} 35. exf5 {[%clk 0:00:07.2]} 35... gxf5 {[%clk 0:01:18.7]} 36. Ke3
{[%clk 0:00:06.1]} 36... Nc2+ {[%clk 0:01:18]} 37. Kf3 {[%clk 0:00:06.4]} 37...
Nd4+ {[%clk 0:01:08.8]} 38. Kf2 {[%clk 0:00:06.4]} 38... Ne6 {[%clk 0:01:09.7]}
39. Kf3 {[%clk 0:00:06.6]} 39... Ng5+ {[%clk 0:01:09.2]} 40. Kf2 {[%clk
0:00:07]} 40... Kd4 {[%clk 0:01:01]} 41. Ne2+ {[%clk 0:00:06.3]} 41... Kd3
{[%clk 0:00:59]} 42. Nf4+ {[%clk 0:00:06.2]} 42... Kc2 {[%clk 0:00:54.8]} 43. h4
{[%clk 0:00:06.1]} 43... Ne4+ {[%clk 0:00:53.9]} 44. Ke3 {[%clk 0:00:05.8]}
44... Nxg3 {[%clk 0:00:53.3]} 45. Ne6 {[%clk 0:00:06.2]} 45... Kb2 {[%clk
0:00:49.1]} 46. Nd4 {[%clk 0:00:05.1]} 46... Kxa2 {[%clk 0:00:47.1]} 47. Nxc6
{[%clk 0:00:05.2]} 47... Kxb3 {[%clk 0:00:46.9]} 48. Kf3 {[%clk 0:00:06.1]}
48... Nf1 {[%clk 0:00:43.4]} 49. Nd4+ {[%clk 0:00:06.2]} 49... Kxc4 {[%clk
0:00:41.9]} 50. Nxf5 {[%clk 0:00:07.1]} 50... a4 {[%clk 0:00:41]} 51. Ke2 {[%clk
0:00:06.7]} 51... Nh2 {[%clk 0:00:30.8]} 52. Ne3+ {[%clk 0:00:02.7]} 52... Kb3
{[%clk 0:00:30]} 53. Kd2 {[%clk 0:00:01.3]} 53... Nf3+ {[%clk 0:00:26.6]} 0-1